[Event "WYCC 2018 G18"]
[Site "Halkidiki"]
[Date "2018.10.23"]
[Round "5"]
[White "Garcia Martin, Marta"]
[Black "Tejaswini, Sagar"]
[Result "0-1"]
[ECO "C50"]
[WhiteElo "2329"]
[BlackElo "2139"]
[Annotator "NA"]
[PlyCount "130"]
[EventDate "2018.10.20"]
[EventType "swiss"]
[EventCountry "GRE"]
[SourceTitle "playchess.com"]
[Source "ChessBase"]
[SourceQuality "1"]
[TimeControl "40/5400+30:1800+30"]

1. e4 {[%emt 0:00:00]} e5 {[%emt 0:00:00]} 2. Nf3 {[%emt 0:00:00]} Nc6 {[%emt 0:00:00]} 3. Bc4 {[%emt 0:00:00]} Bc5 {[%emt 0:00:00]} 4. O-O {[%emt 0:00:00]} d6 {[%emt 0:00:00]} 5. c3 {[%emt 0:00:04]} Nf6 {[%emt 0:00:06]} 6. d3 {[%emt 0:00:22]} a6 {[%emt 0:00:35]} 7. Nbd2 {[%emt 0:01:18]} Ba7 {[%emt 0:01:30]} 8. Bb3 {[%emt 0:00:14]} O-O {[%emt 0:00:06]} 9. h3 {[%emt 0:01:15]} h6 {[%emt 0:03:36]} 10. Re1 {[%emt 0:00:43]} Re8 {[%emt 0:00:33]} 11. Nf1 {[%emt 0:00:39]} Be6 {[%emt 0:01:42]} 12. Bc2 {[%emt 0:05:23] C54: Giuoco Piano: 4 c3 Nf6, main lines with 5 d4 and 5 d3} d5 {[%emt 0:07:45]} 13. Qe2 {[%emt 0:00:45]} d4 {[%emt 0:02:35] LiveBook: 4 Games} (13... dxe4 14. dxe4 Qe7 15. Ng3 Rad8 16. Nh4 Qf8 17. Nhf5 Ne7 18. Ne3 Ng6 19. Ngf5 Nf4 {½-½ (38) Giri,A (2752)-Carlsen,M (2834) Wijk aan Zee 2018}) 14. Ng3 {[%emt 0:03:58]} Qd7 {[%emt 0:03:18]} 15. Bd2 {[%emt 0:28:54]} Rad8 {[%emt 0:09:01] [#]} 16. Nh4 $146 {[%emt 0:01:55]} ({Predecessor:} 16. Red1 Bc5 17. c4 Bxc4 18. Bxh6 Be6 19. Bg5 Be7 {1-0 (47) Hillarp Persson,T (2618)-Glimbrant,T (2244) Kungsor 2009}) 16... dxc3 {[%emt 0:16:23]} 17. bxc3 {[%emt 0:00:06]} Bxh3 {[%emt 0:09:43]} 18. gxh3 {[%emt 0:02:27]} Qxh3 {[%emt 0:00:07]} 19. Nhf5 {[%emt 0:00:08]} Ng4 {[%emt 0:02:35]} 20. Red1 {[%emt 0:20:50]} Qh2+ {[%emt 0:11:50]} 21. Kf1 {[%emt 0:00:05]} Qxf2+ {[%emt 0:00:58]} 22. Qxf2 {[%emt 0:00:09]} Nxf2 {[%emt 0:00:02]} 23. Ke2 {[%emt 0:05:53]} Nxd1 {[%emt 0:01:32]} 24. Rxd1 {[%emt 0:00:04]} Ne7 {[%emt 0:01:38]} 25. Bb3 {[%emt 0:03:53]} Nxf5 {[%emt 0:01:09]} 26. Nxf5 {[%emt 0:00:04]} Rd7 {[%emt 0:00:42]} 27. Rf1 {[%emt 0:00:20]} h5 {[%emt 0:02:35]} 28. Rf3 {[%emt 0:10:19]} Kh7 {[%emt 0:03:54]} 29. Ng3 {[%emt 0:02:50]} Kg6 {[%emt 0:01:11]} 30. Rf5 {[%emt 0:03:26]} f6 {[%emt 0:04:26]} 31. Rxh5 {[%emt 0:00:50]} Red8 {[%emt 0:00:33]} 32. Bc2 {[%emt 0:01:08]} b5 {[%emt 0:01:40]} 33. Rh3 {[%emt 0:00:39]} c5 {[%emt 0:01:04]} 34. Bc1 {[%emt 0:03:31]} c4 {[%emt 0:02:36]} 35. dxc4 {[%emt 0:00:09]} bxc4 {[%emt 0:00:02]} 36. Nf5 {[%emt 0:00:09]} Bc5 {[%emt 0:03:24]} 37. Rg3+ {[%emt 0:01:21]} Kh7 {[%emt 0:00:07]} 38. Ba4 {[%emt 0:00:21]} Rc7 {[%emt 0:01:32]} 39. Rh3+ {[%emt 0:02:31]} Kg8 {[%emt 0:01:05]} 40. Rg3 {[%emt 0:00:00]} Kh7 {[%emt 0:00:00]} 41. Bc2 {[%emt 0:12:45]} Rcd7 {[%emt 0:03:22]} 42. Kf3 {[%emt 0:03:30]} Rb7 {[%emt 0:04:07]} 43. Kg4 {[%emt 0:03:57]} g6 {[%emt 0:02:25]} 44. Rh3+ {[%emt 0:01:46]} Kg8 {[%emt 0:00:03]} 45. Nh4 {[%emt 0:01:12]} Kg7 {[%emt 0:01:03]} 46. Rh1 {[%emt 0:03:51]} Rbd7 {[%emt 0:01:46]} 47. Bh6+ {[%emt 0:00:48]} Kf7 {[%emt 0:01:45]} 48. Rf1 {[%emt 0:04:47]} Rh8 {[%emt 0:00:23]} 49. Bg5 {[%emt 0:00:16]} Be7 $15 {[%emt 0:00:35]} 50. Ng2 {[%emt 0:01:19]} Kg7 {[%emt 0:03:02]} 51. Bc1 {[%emt 0:00:03]} Bc5 {[%emt 0:00:34]} 52. Kg3 {[%emt 0:00:30]} Rb8 {[%emt 0:01:10]} 53. Nh4 {[%emt 0:00:22]} Rbd8 {[%emt 0:01:49]} 54. Nf3 {[%emt 0:00:17]} Kg8 {[%emt 0:01:37]} 55. Nh2 {[%emt 0:00:18]} Kg7 {[%emt 0:01:52]} 56. Ng4 {[%emt 0:00:05]} Rd6 {[%emt 0:00:24]} 57. Bh6+ {[%emt 0:02:24]} Kh7 {[%emt 0:00:08]} 58. Rh1 {[%emt 0:02:49]} Kg8 {[%emt 0:00:16]} 59. Rf1 {[%emt 0:00:41]} Kh7 {[%emt 0:00:06]} 60. a4 {[%emt 0:00:51]} g5 {[%emt 0:02:08]} 61. Nxf6+ {[%emt 0:00:37]} Kxh6 {[%emt 0:00:15]} 62. Ng4+ {[%emt 0:00:12]} Kg7 {[%emt 0:00:38]} 63. Bb1 {[%emt 0:00:53]} Rd1 {[%emt 0:01:56]} 64. Rxd1 {[%emt 0:00:25]} Rxd1 {[%emt 0:00:02]} 65. Bc2 {[%emt 0:00:11]} Rc1 {[%emt 0:00:15]} 0-1

[Event "WYCC 2018 G18"]
[Site "Halkidiki"]
[Date "2018.10.23"]
[Round "5"]
[White "Obolentseva, Alexandra"]
[Black "Priyanka, Kumari"]
[Result "1-0"]
[ECO "E82"]
[WhiteElo "2298"]
[BlackElo "2005"]
[Annotator "NA"]
[PlyCount "87"]
[EventDate "2018.10.20"]
[EventType "swiss"]
[EventCountry "GRE"]
[SourceTitle "playchess.com"]
[Source "ChessBase"]
[SourceQuality "1"]
[TimeControl "40/5400+30:1800+30"]

1. d4 {[%emt 0:00:11]} Nf6 {[%emt 0:00:07]} 2. c4 {[%emt 0:00:39]} g6 {[%emt 0:00:05]} 3. Nc3 {[%emt 0:00:56]} Bg7 {[%emt 0:00:11]} 4. e4 {[%emt 0:00:27]} d6 {[%emt 0:00:07]} 5. f3 {[%emt 0:01:25]} O-O {[%emt 0:00:28]} 6. Be3 {[%emt 0:01:02]} b6 {[%emt 0:03:00]} 7. Nge2 {[%emt 0:01:51]} c5 {[%emt 0:02:03]} 8. d5 {[%emt 0:00:35]} e6 {[%emt 0:04:53] LiveBook: 37 Games E82: King's Indian: Sämisch: 6...b6} 9. Ng3 {[%emt 0:03:16]} exd5 {[%emt 0:03:30]} 10. cxd5 {[%emt 0:00:15]} a6 {[%emt 0:00:30]} (10... Ba6 11. Be2 Bxe2 12. Qxe2 a6 13. O-O b5 14. e5 dxe5 15. Bxc5 Re8 16. Rad1 {½-½ (44) Gunina,V (2497)-Grischuk,A (2752) Cheliabinsk 2016}) 11. a4 {[%emt 0:00:32]} Nbd7 {[%emt 0:01:03]} 12. Be2 {[%emt 0:01:04]} Rb8 {[%emt 0:04:14]} 13. O-O {[%emt 0:01:06]} Ne8 {[%emt 0:05:43]} 14. Qd2 $146 {[%emt 0:07:14]} ({Predecessor:} 14. f4 Nc7 15. e5 dxe5 16. f5 {½-½ (31) Rietze,C (2354)-Olsson,T (1930) Stockholm 2016}) 14... Nc7 {[%emt 0:01:51]} 15. Rfb1 {[%emt 0:07:00]} b5 {[%emt 0:09:53]} 16. axb5 {[%emt 0:02:46]} axb5 {[%emt 0:01:06]} 17. Bg5 {[%emt 0:07:30]} Qe8 {[%emt 0:16:24]} 18. Ra7 {[%emt 0:04:27]} b4 {[%emt 0:02:55]} 19. Nd1 {[%emt 0:04:13]} Nb5 {[%emt 0:05:52]} 20. Bxb5 {[%emt 0:00:09]} Rxb5 {[%emt 0:00:06]} 21. Ne3 {[%emt 0:00:51]} Bd4 {[%emt 0:15:50]} 22. Kh1 {[%emt 0:00:14]} Bxe3 {[%emt 0:04:42]} 23. Bxe3 {[%emt 0:02:05]} f6 {[%emt 0:00:16]} 24. b3 {[%emt 0:01:17]} Rf7 {[%emt 0:00:44]} 25. Rba1 {[%emt 0:01:11]} Rb7 {[%emt 0:00:36]} 26. Rxb7 {[%emt 0:06:17]} Bxb7 {[%emt 0:00:06]} 27. Bf2 {[%emt 0:02:11]} Nb6 {[%emt 0:02:46]} 28. Re1 $14 {[%emt 0:01:20]} Ba6 {[%emt 0:01:13]} 29. f4 {[%emt 0:01:15]} Re7 {[%emt 0:00:53]} 30. e5 {[%emt 0:01:19]} f5 {[%emt 0:05:05]} 31. Ra1 {[%emt 0:00:13]} Qc8 {[%emt 0:02:32]} 32. exd6 {[%emt 0:01:28]} Rd7 {[%emt 0:00:10]} 33. Qe3 {[%emt 0:00:52]} Bb7 {[%emt 0:01:54]} 34. Qe6+ {[%emt 0:01:13]} Kf8 {[%emt 0:01:27]} 35. Rc1 {[%emt 0:06:09]} Bxd5 {[%emt 0:02:35]} 36. Qf6+ {[%emt 0:00:09]} Bf7 {[%emt 0:01:21]} 37. Rxc5 {[%emt 0:10:34]} Qd8 {[%emt 0:00:21]} 38. Qh8+ {[%emt 0:01:21]} Bg8 {[%emt 0:00:03]} 39. Nxf5 {[%emt 0:02:08]} gxf5 {[%emt 0:01:42]} 40. Rxf5+ {[%emt 0:00:00]} Rf7 {[%emt 0:00:00]} 41. Bxb6 {[%emt 0:04:56]} Qxb6 {[%emt 0:03:51]} 42. Rg5 {[%emt 0:00:11]} Qxd6 {[%emt 0:00:47]} 43. Rxg8+ {[%emt 0:00:06]} Ke7 {[%emt 0:00:02]} 44. Re8+ {[%emt 0:00:07]} 1-0

[Event "WYCC 2018 G18"]
[Site "Halkidiki"]
[Date "2018.10.23"]
[Round "5"]
[White "Kiolbasa, Oliwia"]
[Black "Tarini Goyal"]
[Result "1/2-1/2"]
[ECO "B12"]
[WhiteElo "2254"]
[BlackElo "2026"]
[Annotator "NA"]
[PlyCount "44"]
[EventDate "2018.10.20"]
[EventType "swiss"]
[EventCountry "GRE"]
[SourceTitle "playchess.com"]
[Source "ChessBase"]
[SourceQuality "1"]
[TimeControl "40/5400+30:1800+30"]

1. e4 {[%emt 0:00:00]} c6 {[%emt 0:00:37]} 2. d4 {[%emt 0:00:00]} d5 {[%emt 0:00:11]} 3. e5 {[%emt 0:00:00]} Bf5 {[%emt 0:00:10]} 4. Nd2 {[%emt 0:00:00]} e6 {[%emt 0:00:14]} 5. Nb3 {[%emt 0:00:09]} c5 {[%emt 0:00:52] B12: Caro-Kann: Advance Variation} (5... Nd7 6. Nf3 c5 7. dxc5 Bxc5 8. Nxc5 Nxc5 9. Nd4 Ne7 10. Be2 Nd7 11. f4 O-O 12. Be3 Be4 13. O-O Nb8 14. c3 {½-½ (36) Leko,P (2690)-Nisipeanu,L (2661) Batumi 2018}) 6. dxc5 {[%emt 0:01:22]} Bxc5 {[%emt 0:01:57]} 7. Nxc5 {[%emt 0:00:14]} Qa5+ {[%emt 0:00:06]} 8. c3 {[%emt 0:00:23]} Qxc5 {[%emt 0:00:10]} 9. Nf3 {[%emt 0:01:12]} Qc7 {[%emt 0:02:10]} 10. Bf4 {[%emt 0:29:01]} Nc6 {[%emt 0:08:17]} 11. Nd4 {[%emt 0:13:50]} Nxd4 {[%emt 0:11:50]} 12. Qxd4 {[%emt 0:00:56]} Ne7 {[%emt 0:04:30]} 13. Be2 $146 {[%emt 0:01:39]} ({Predecessor:} 13. Bb5+) 13... O-O {[%emt 0:04:08]} 14. O-O {[%emt 0:00:51]} Nc6 {[%emt 0:07:19]} 15. Qe3 {[%emt 0:00:22]} Na5 {[%emt 0:03:00]} 16. b3 {[%emt 0:04:25]} a6 {[%emt 0:02:42]} 17. Rac1 {[%emt 0:00:59]} b5 {[%emt 0:00:18]} 18. h4 {[%emt 0:03:20]} h6 {[%emt 0:02:16]} 19. h5 {[%emt 0:01:35]} Nc6 {[%emt 0:04:57]} 20. Rfd1 {[%emt 0:02:00]} Rac8 $11 {[%emt 0:04:14]} 21. b4 {[%emt 0:04:06]} Qb8 {[%emt 0:04:48]} 22. a3 {[%emt 0:01:47]} a5 {[%emt 0:11:36]} 1/2-1/2

[Event "WYCC 2018 G18"]
[Site "Halkidiki"]
[Date "2018.10.23"]
[Round "5"]
[White "Antolak, Julia"]
[Black "Du, Yuxin"]
[Result "1/2-1/2"]
[ECO "B19"]
[WhiteElo "2240"]
[BlackElo "2011"]
[Annotator "NA"]
[PlyCount "103"]
[EventDate "2018.10.20"]
[EventType "swiss"]
[EventCountry "GRE"]
[SourceTitle "playchess.com"]
[Source "ChessBase"]
[SourceQuality "1"]
[TimeControl "40/5400+30:1800+30"]

1. e4 {[%emt 0:00:00]} c6 {[%emt 0:00:00]} 2. d4 {[%emt 0:00:00]} d5 {[%emt 0:00:00]} 3. Nc3 {[%emt 0:00:00]} dxe4 {[%emt 0:00:00]} 4. Nxe4 {[%emt 0:00:00]} Bf5 {[%emt 0:00:03]} 5. Ng3 {[%emt 0:00:00]} Bg6 {[%emt 0:00:05]} 6. h4 {[%emt 0:00:00]} h6 {[%emt 0:00:05]} 7. Nf3 {[%emt 0:00:03]} Nd7 {[%emt 0:00:06]} 8. h5 {[%emt 0:00:07]} Bh7 {[%emt 0:00:04]} 9. Bd3 {[%emt 0:00:03]} Bxd3 {[%emt 0:00:08]} 10. Qxd3 {[%emt 0:00:03]} e6 {[%emt 0:00:18]} 11. Bd2 {[%emt 0:00:08]} Ngf6 {[%emt 0:00:08]} 12. O-O-O {[%emt 0:00:16]} Be7 {[%emt 0:00:05]} 13. Kb1 {[%emt 0:00:17]} O-O {[%emt 0:00:12]} 14. Ne4 {[%emt 0:00:06]} Nxe4 {[%emt 0:00:13] B19: Classical Caro-Kann: 4...Bf5 main line} (14... c5 15. g4 Nxg4 16. Qe2 Qb6 17. Ne5 Ndxe5 18. dxe5 f5 19. exf6 Nxf6 20. Nc3 Rad8 21. Rhg1 Kh8 22. Rg6 {½-½ (38) Saric,I (2662)-Nisipeanu,L (2672) Heraklio 2017}) 15. Qxe4 {[%emt 0:00:04]} Nf6 {[%emt 0:00:06]} 16. Qe2 {[%emt 0:00:05]} Qd5 {[%emt 0:01:14]} 17. Be3 {[%emt 0:00:11]} Qb5 {[%emt 0:10:06]} 18. Rd3 {[%emt 0:01:01]} Nd5 {[%emt 0:02:23]} 19. Bd2 {[%emt 0:01:53]} a5 $146 {[%emt 1:01:14]} ({Predecessor:} 19... c5 20. dxc5 Bxc5 21. Rh4 Ne7 22. Rg4 {1-0 (33) Khanin,S (2407)-Esipenko,A (2350) Kirishi 2015}) 20. Ne5 {[%emt 0:29:37]} Ba3 {[%emt 0:07:07]} 21. b3 {[%emt 0:02:20]} Qa6 {[%emt 0:02:23]} 22. c4 {[%emt 0:11:53]} Ne7 {[%emt 0:07:10]} 23. g4 {[%emt 0:06:46]} Bd6 $18 {[%emt 0:03:13]} 24. g5 {[%emt 0:11:29]} a4 {[%emt 0:01:06]} 25. Bc1 {[%emt 0:04:08]} axb3 {[%emt 0:00:46]} 26. Rxb3 {[%emt 0:00:46]} Nf5 {[%emt 0:01:26]} 27. Nf3 {[%emt 0:02:45]} hxg5 {[%emt 0:01:30]} 28. Bxg5 {[%emt 0:02:18]} Rfe8 {[%emt 0:00:57]} 29. h6 {[%emt 0:05:49]} f6 {[%emt 0:00:30]} 30. Bc1 {[%emt 0:05:04]} g6 {[%emt 0:01:17]} 31. Qc2 {[%emt 0:04:14]} b5 {[%emt 0:00:57]} 32. c5 {[%emt 0:01:40]} Bc7 {[%emt 0:00:25]} 33. Nh4 {[%emt 0:02:18]} Nxh4 {[%emt 0:00:32]} 34. Rxh4 {[%emt 0:00:04]} Kf7 {[%emt 0:00:23]} 35. h7 {[%emt 0:01:19]} Qa4 {[%emt 0:00:33]} 36. Qd2 {[%emt 0:02:14]} g5 {[%emt 0:00:34]} 37. Rhh3 {[%emt 0:03:45]} Bf4 {[%emt 0:00:31]} 38. Qb2 {[%emt 0:02:03]} Bxc1 {[%emt 0:00:17]} 39. Kxc1 {[%emt 0:00:02]} Qc4+ {[%emt 0:00:20]} 40. Kd2 {[%emt 0:00:00]} Qf1 {[%emt 0:00:00]} 41. Rhf3 {[%emt 0:08:12]} Rad8 {[%emt 0:13:38]} 42. Rbd3 {[%emt 0:04:48]} Rd5 {[%emt 0:09:23]} 43. Qa3 {[%emt 0:05:22]} Kg6 {[%emt 0:05:14]} 44. Qa7 {[%emt 0:03:53]} Qb1 {[%emt 0:01:58]} 45. Qe7 {[%emt 0:05:42]} Qb2+ {[%emt 0:02:25]} 46. Ke1 {[%emt 0:00:57]} Rxe7 {[%emt 0:00:15]} 47. h8=Q {[%emt 0:00:06]} Rf5 {[%emt 0:01:31]} 48. Qg8+ {[%emt 0:04:10]} Rg7 {[%emt 0:00:20]} 49. Qe8+ {[%emt 0:00:20]} Rf7 {[%emt 0:00:09]} 50. Qg8+ {[%emt 0:02:13]} Rg7 {[%emt 0:00:04]} 51. Qe8+ {[%emt 0:00:44]} Rf7 {[%emt 0:00:05]} 52. Qg8+ {[%emt 0:00:45]} 1/2-1/2

[Event "WYCC 2018 G18"]
[Site "Halkidiki"]
[Date "2018.10.23"]
[Round "5"]
[White "Dimitrova, Aleksandra"]
[Black "Hamedi Nia, Vesal"]
[Result "1-0"]
[ECO "B33"]
[WhiteElo "2228"]
[BlackElo "1987"]
[Annotator "NA"]
[PlyCount "73"]
[EventDate "2018.10.20"]
[EventType "swiss"]
[EventCountry "GRE"]
[SourceTitle "playchess.com"]
[Source "ChessBase"]
[SourceQuality "1"]
[TimeControl "40/5400+30:1800+30"]

1. e4 {[%emt 0:00:00]} c5 {[%emt 0:00:00]} 2. Nf3 {[%emt 0:00:00]} Nc6 {[%emt 0:00:00]} 3. d4 {[%emt 0:00:00]} cxd4 {[%emt 0:00:00]} 4. Nxd4 {[%emt 0:00:00]} Nf6 {[%emt 0:00:00]} 5. Nc3 {[%emt 0:00:00]} e5 {[%emt 0:00:00]} 6. Ndb5 {[%emt 0:00:00]} d6 {[%emt 0:00:05]} 7. Bg5 {[%emt 0:00:00]} a6 {[%emt 0:00:07]} 8. Na3 {[%emt 0:00:02]} b5 {[%emt 0:00:03]} 9. Nd5 {[%emt 0:00:12]} Be7 {[%emt 0:00:07]} 10. Bxf6 {[%emt 0:00:05]} Bxf6 {[%emt 0:00:03]} 11. c4 {[%emt 0:00:07]} b4 {[%emt 0:00:03] B33: Sicilian: Pelikan and Sveshnikov Variations} 12. Nc2 {[%emt 0:00:07]} O-O {[%emt 0:00:25]} (12... a5 13. Qf3 Be6 14. Rd1 Bxd5 15. Rxd5 Ne7 16. Rb5 Rb8 17. Bd3 Bg5 18. O-O O-O 19. Rd1 Qc7 20. a3 b3 {½-½ (72) Bogner,S (2619)-Cordova,E (2609) Batumi 2018}) 13. h4 {[%emt 0:00:07]} a5 {[%emt 0:00:16]} 14. g3 {[%emt 0:01:02]} Be6 {[%emt 0:00:27]} 15. Qd2 {[%emt 0:01:25]} Bxd5 {[%emt 0:05:24]} 16. cxd5 {[%emt 0:00:09] LiveBook: 3 Games} Nb8 {[%emt 0:01:01]} 17. Bb5 {[%emt 0:05:39]} Nd7 {[%emt 0:09:07]} 18. Ne3 $146 {[%emt 0:11:28]} ({Predecessor:} 18. Bxd7 Qxd7 19. Ne3 {½-½ (38) Ramesh,R (2268)-Aykent,S (2266) ICCF email 2016}) 18... Nc5 {[%emt 0:01:41]} 19. f3 {[%emt 0:01:33]} Qb8 {[%emt 0:09:02]} 20. Bc6 {[%emt 0:01:56]} Ra7 {[%emt 0:00:31]} 21. Rc1 {[%emt 0:01:30]} Bd8 {[%emt 0:05:42]} 22. Rxc5 {[%emt 0:11:38]} dxc5 {[%emt 0:00:08]} 23. b3 {[%emt 0:02:35]} c4 {[%emt 0:06:57]} 24. Nxc4 {[%emt 0:03:10]} Bb6 {[%emt 0:00:46]} 25. g4 {[%emt 0:10:28]} Bd4 {[%emt 0:05:36]} 26. Ke2 {[%emt 0:01:38]} g6 {[%emt 0:20:16]} 27. h5 {[%emt 0:12:03]} f5 {[%emt 0:02:25]} 28. hxg6 $18 {[%emt 0:08:35]} fxg4 {[%emt 0:04:10]} 29. d6 {[%emt 0:04:42]} hxg6 {[%emt 0:24:32]} 30. Qh6 {[%emt 0:03:38]} gxf3+ {[%emt 0:00:45]} 31. Kf1 {[%emt 0:01:05]} Kf7 {[%emt 0:00:26]} 32. Bd5+ {[%emt 0:05:33]} Ke8 {[%emt 0:01:27]} 33. Qxf8+ {[%emt 0:02:21]} Kxf8 {[%emt 0:00:07]} 34. Rh8+ {[%emt 0:00:01]} Kg7 {[%emt 0:00:05]} 35. Rxb8 {[%emt 0:00:04]} Kh6 {[%emt 0:01:40]} 36. Rb7 {[%emt 0:02:07]} Ra8 {[%emt 0:00:05]} 37. Rh7+ {[%emt 0:00:46]} 1-0

[Event "WYCC 2018 G18"]
[Site "Halkidiki"]
[Date "2018.10.23"]
[Round "5"]
[White "Martynkova, Olena"]
[Black "Salimova, Asal"]
[Result "1-0"]
[ECO "A40"]
[WhiteElo "2188"]
[BlackElo "1870"]
[Annotator "NA"]
[PlyCount "54"]
[EventDate "2018.10.20"]
[EventType "swiss"]
[EventCountry "GRE"]
[SourceTitle "playchess.com"]
[Source "ChessBase"]
[SourceQuality "1"]
[TimeControl "40/5400+30:1800+30"]

1. d4 g6 2. c4 Bg7 3. Nf3 d6 4. Nc3 Nd7 5. g3 $11 e5 6. Bg2 Ne7 7. O-O O-O 8. e4 exd4 9. Nxd4 Ne5 10. b3 N7c6 11. Nxc6 bxc6 12. Bb2 Rb8 13. Qe2 f5 14. f4 Ng4 15. Rad1 Qe7 16. h3 Nh6 17. Rfe1 Re8 18. Qf2 Qd7 19. Qxa7 Rb7 20. Qf2 Rb8 21. e5 Bb7 22. Na4 Ba8 23. exd6 cxd6 24. Bxg7 Qxg7 25. Rxd6 Nf7 26. Rd7 c5 27. Nxc5 Qc3 1-0

[Event "WYCC 2018 G18"]
[Site "Halkidiki"]
[Date "2018.10.23"]
[Round "5"]
[White "Radeva, Viktoria"]
[Black "Stashis, Anna"]
[Result "1-0"]
[ECO "B33"]
[WhiteElo "2163"]
[BlackElo "1979"]
[Annotator "NA"]
[PlyCount "75"]
[EventDate "2018.10.20"]
[EventType "swiss"]
[EventCountry "GRE"]
[SourceTitle "playchess.com"]
[Source "ChessBase"]
[SourceQuality "1"]
[TimeControl "40/5400+30:1800+30"]

1. e4 {[%emt 0:00:00]} c5 {[%emt 0:00:00]} 2. Nf3 {[%emt 0:00:00]} Nc6 {[%emt 0:00:00]} 3. d4 {[%emt 0:00:00]} cxd4 {[%emt 0:00:00]} 4. Nxd4 {[%emt 0:00:00]} Nf6 {[%emt 0:00:00]} 5. Nc3 {[%emt 0:00:00]} e5 {[%emt 0:00:06]} 6. Ndb5 {[%emt 0:00:00]} d6 {[%emt 0:00:10]} 7. Bg5 {[%emt 0:00:02]} a6 {[%emt 0:00:10]} 8. Na3 {[%emt 0:00:05]} b5 {[%emt 0:00:22]} 9. Nd5 {[%emt 0:00:09]} Be7 {[%emt 0:00:18]} 10. Bxf6 {[%emt 0:00:16]} Bxf6 {[%emt 0:00:07]} 11. c3 {[%emt 0:00:08]} Bg5 {[%emt 0:01:55]} 12. Nc2 {[%emt 0:00:31]} Ne7 {[%emt 0:00:40]} 13. a4 {[%emt 0:18:49]} bxa4 {[%emt 0:02:14]} 14. Ncb4 {[%emt 0:06:40]} O-O {[%emt 0:05:50]} 15. Rxa4 {[%emt 0:04:42]} a5 {[%emt 0:08:23]} 16. Nxe7+ {[%emt 0:10:49]} Qxe7 {[%emt 0:01:44]} 17. Bc4 {[%emt 0:07:17]} Be6 {[%emt 0:16:13]} 18. Bd5 {[%emt 0:06:29]} Bxd5 $14 {[%emt 0:05:05]} 19. Qxd5 {[%emt 0:03:15]} Qd7 {[%emt 0:23:57]} 20. Rxa5 {[%emt 0:05:35]} Rxa5 {[%emt 0:00:17]} 21. Qxa5 {[%emt 0:00:06]} Qg4 {[%emt 0:00:38]} 22. O-O {[%emt 0:00:47]} Qxe4 {[%emt 0:00:12]} 23. Qd5 {[%emt 0:06:36]} Qe2 {[%emt 0:10:18]} 24. b3 {[%emt 0:05:24]} Bd2 {[%emt 0:04:34]} 25. Qxd6 {[%emt 0:03:17]} h6 {[%emt 0:09:25]} 26. Nd5 {[%emt 0:05:11]} Ra8 {[%emt 0:04:12]} 27. Ne7+ {[%emt 0:04:08]} Kh7 {[%emt 0:00:48]} 28. Qd5 {[%emt 0:01:04]} Rf8 {[%emt 0:02:27]} 29. c4 {[%emt 0:00:43]} g6 {[%emt 0:02:13]} 30. Qf3 {[%emt 0:02:57]} Qxf3 {[%emt 0:01:13]} 31. gxf3 {[%emt 0:00:01]} Rb8 {[%emt 0:00:48]} 32. Rb1 {[%emt 0:00:47]} Rb7 {[%emt 0:00:17]} 33. Nc6 {[%emt 0:02:01]} Bc3 {[%emt 0:00:31]} 34. b4 {[%emt 0:00:14]} Kg7 {[%emt 0:00:44]} 35. b5 {[%emt 0:00:10]} Kf6 {[%emt 0:00:28]} 36. b6 {[%emt 0:02:27]} Bd4 {[%emt 0:00:48]} 37. Nxd4 {[%emt 0:00:43]} exd4 {[%emt 0:00:04]} 38. c5 {[%emt 0:00:03]} 1-0

[Event "WYCC 2018 G18"]
[Site "Halkidiki"]
[Date "2018.10.23"]
[Round "5"]
[White "Represa Perez, Mireya"]
[Black "Dong, Khanh Linh"]
[Result "0-1"]
[ECO "C07"]
[WhiteElo "2151"]
[BlackElo "1879"]
[Annotator "NA"]
[PlyCount "80"]
[EventDate "2018.10.20"]
[EventType "swiss"]
[EventCountry "GRE"]
[SourceTitle "playchess.com"]
[Source "ChessBase"]
[SourceQuality "1"]
[TimeControl "40/5400+30:1800+30"]

1. e4 {[%emt 0:00:00]} e6 {[%emt 0:00:00]} 2. d4 {[%emt 0:00:00]} d5 {[%emt 0:00:00]} 3. Nd2 {[%emt 0:00:00]} c5 {[%emt 0:00:00]} 4. exd5 {[%emt 0:00:00]} Qxd5 {[%emt 0:00:36]} 5. Ngf3 {[%emt 0:00:10]} Nf6 {[%emt 0:01:37]} 6. Bc4 {[%emt 0:00:37]} Qd6 {[%emt 0:01:17]} 7. O-O {[%emt 0:01:19]} Bd7 {[%emt 0:02:33]} 8. Nb3 {[%emt 0:08:07]} cxd4 {[%emt 0:04:56]} 9. Nbxd4 {[%emt 0:00:45]} Be7 {[%emt 0:03:07]} 10. Qe2 {[%emt 0:07:06]} a6 {[%emt 0:07:30]} 11. Rd1 {[%emt 0:03:06]} Qb6 {[%emt 0:12:25]} 12. Ne5 {[%emt 0:07:11]} O-O {[%emt 0:20:23]} 13. Nxd7 {[%emt 0:04:47]} Nbxd7 {[%emt 0:00:26]} 14. Nxe6 {[%emt 0:20:41]} fxe6 {[%emt 0:00:59]} 15. Bxe6+ {[%emt 0:00:22]} Kh8 {[%emt 0:00:30]} 16. Bxd7 {[%emt 0:00:11]} Bc5 {[%emt 0:02:29]} 17. Be3 {[%emt 0:07:13]} Nxd7 {[%emt 0:05:03]} 18. Rxd7 {[%emt 0:00:31]} Qxb2 {[%emt 0:00:45]} 19. Rdd1 {[%emt 0:11:17]} Bxe3 {[%emt 0:07:15]} 20. fxe3 {[%emt 0:05:41]} Rae8 {[%emt 0:02:47]} 21. Qd3 {[%emt 0:03:07]} Qe5 {[%emt 0:03:00]} 22. Re1 {[%emt 0:04:45]} Rf6 {[%emt 0:06:51]} 23. Qd4 {[%emt 0:02:07]} Qc7 {[%emt 0:04:05]} 24. Re2 {[%emt 0:03:16]} Ref8 {[%emt 0:03:26]} 25. a4 {[%emt 0:03:16]} Qf7 {[%emt 0:00:28]} 26. Ree1 {[%emt 0:01:23]} Rf2 {[%emt 0:00:39]} 27. Qe4 {[%emt 0:02:54]} b5 {[%emt 0:05:14]} 28. axb5 {[%emt 0:00:40]} axb5 {[%emt 0:00:01]} 29. c3 {[%emt 0:01:09]} Qf6 {[%emt 0:02:11]} 30. Rac1 {[%emt 0:01:25]} Qd6 {[%emt 0:00:47]} 31. Rcd1 {[%emt 0:01:26]} Qf6 {[%emt 0:02:34]} 32. Rc1 {[%emt 0:00:30]} h6 {[%emt 0:01:04]} 33. Qb7 {[%emt 0:00:30]} Qf5 {[%emt 0:00:33]} 34. Qc6 {[%emt 0:00:30]} Qd3 {[%emt 0:00:21]} 35. h3 {[%emt 0:00:30]} R8f6 {[%emt 0:00:35]} 36. Qc8+ {[%emt 0:00:37]} Kh7 {[%emt 0:00:01]} 37. Qb7 {[%emt 0:00:08]} Rb2 {[%emt 0:01:02]} 38. Rf1 {[%emt 0:00:36]} Qxe3+ {[%emt 0:00:22]} 39. Kh1 {[%emt 0:00:23]} Rff2 {[%emt 0:00:35]} 40. Rg1 {[%emt 0:00:00]} Qxh3+ {[%emt 0:00:00]} 0-1